[Event "Titled Tuesday Blitz November 08 Early 2022"]
[White "Manukyan, Sargis A."]
[Black "Bok, Benjamin"]
[WhiteFideId "13303970"]
[BlackFideId "1017063"]
[WhiteElo "2187"]
[BlackElo "2658"]
[Result "0-1"]
[Round "02"]
[TimeControl "180+1"]
[Date "2022.11.09"]
[WhiteClock "0:00:03"]
[BlackClock "0:00:07"]

1. d4 {[%clk 0:03:00]}  Nf6 {[%clk 0:02:58]} 2. c4 {[%clk 0:03:00]}  e6 {[%clk 0:02:58]} 3. Nc3 {[%clk 0:02:59]}  Bb4 {[%clk 0:02:58]} 4. e3 {[%clk 0:02:58]}  O-O {[%clk 0:02:57]} 5. Ne2 {[%clk 0:02:58]}  d5 {[%clk 0:02:57]} 6. a3 {[%clk 0:02:58]}  Be7 {[%clk 0:02:57]} 7. c5 {[%clk 0:02:51]}  b6 {[%clk 0:02:55]} 8. b4 {[%clk 0:02:41]}  a5 {[%clk 0:02:55]} 9. Bd2 {[%clk 0:02:35]}  axb4 {[%clk 0:02:41]} 10. axb4 {[%clk 0:02:33]}  Rxa1 {[%clk 0:02:41]} 11. Qxa1 {[%clk 0:02:33]}  Nc6 {[%clk 0:02:42]} 12. Qa3 {[%clk 0:01:49]}  bxc5 {[%clk 0:02:40]} 13. dxc5 {[%clk 0:01:39]}  d4 {[%clk 0:02:28]} 14. Nxd4 {[%clk 0:01:34]}  Nxd4 {[%clk 0:02:29]} 15. exd4 {[%clk 0:01:33]}  Qxd4 {[%clk 0:02:30]} 16. Be3 {[%clk 0:01:31]}  Qg4 {[%clk 0:02:21]} 17. f3 {[%clk 0:01:27]}  Qg6 {[%clk 0:02:21]} 18. Kf2 {[%clk 0:01:18]}  Qf5 {[%clk 0:01:46]} 19. h3 {[%clk 0:01:17]}  Nh5 {[%clk 0:01:13]} 20. h4 {[%clk 0:01:04]}  Qe5 {[%clk 0:01:00]} 21. Ne4 {[%clk 0:00:53]}  f5 {[%clk 0:00:58]} 22. Qc3 {[%clk 0:00:53]}  Qxc3 {[%clk 0:00:50]} 23. Nxc3 {[%clk 0:00:53]}  f4 {[%clk 0:00:51]} 24. Bc1 {[%clk 0:00:40]}  Ng3 {[%clk 0:00:49]} 25. Rg1 {[%clk 0:00:39]}  Bxh4 {[%clk 0:00:47]} 26. Ke1 {[%clk 0:00:21]}  Ne4+ {[%clk 0:00:29]} 27. g3 {[%clk 0:00:19]}  Bxg3+ {[%clk 0:00:28]} 28. Rxg3 {[%clk 0:00:20]}  Nxg3 {[%clk 0:00:29]} 29. Bc4 {[%clk 0:00:19]}  g5 {[%clk 0:00:24]} 30. b5 {[%clk 0:00:18]}  Kf7 {[%clk 0:00:22]} 31. c6 {[%clk 0:00:15]}  Rd8 {[%clk 0:00:19]} 32. Ba3 {[%clk 0:00:15]}  h5 {[%clk 0:00:18]} 33. Bc5 {[%clk 0:00:14]}  h4 {[%clk 0:00:17]} 34. Bg1 {[%clk 0:00:12]}  h3 {[%clk 0:00:17]} 35. Bh2 {[%clk 0:00:12]}  Kf6 {[%clk 0:00:16]} 36. Bxg3 {[%clk 0:00:10]}  fxg3 {[%clk 0:00:16]} 37. Ne4+ {[%clk 0:00:11]}  Ke5 {[%clk 0:00:16]} 38. Nxg3 {[%clk 0:00:12]}  h2 {[%clk 0:00:12]} 39. Bf1 {[%clk 0:00:05]}  Kf4 {[%clk 0:00:09]} 40. Nh5+ {[%clk 0:00:05]}  Kxf3 {[%clk 0:00:07]} 41. Be2+ {[%clk 0:00:04]}  Ke3 {[%clk 0:00:07]} 42. Ng3 {[%clk 0:00:04]}  Rh8 {[%clk 0:00:07]} 43. Nh1 {[%clk 0:00:04]}  e5 {[%clk 0:00:07]} 44. b6 {[%clk 0:00:03]}  cxb6 {[%clk 0:00:07]} 45. c7 {[%clk 0:00:04]}  Rh7 {[%clk 0:00:07]} 46. Bg4 {[%clk 0:00:04]}  Bxg4 {[%clk 0:00:06]} 47. Ng3 {[%clk 0:00:04]}  Rxc7 {[%clk 0:00:05]} 48. Nf1+ {[%clk 0:00:05]}  Kf4 {[%clk 0:00:05]} 49. Kf2 {[%clk 0:00:05]}  Rc2+ {[%clk 0:00:05]} 50. Ke1 {[%clk 0:00:04]}  Re2+ {[%clk 0:00:05]} 51. Kd1 {[%clk 0:00:04]}  h1=Q {[%clk 0:00:06]} 52. Kc1 {[%clk 0:00:03]}  Qxf1# {[%clk 0:00:07]} 0-1


[Site "https://www.chess.com"]

[Event "Titled Tuesday Blitz November 08 Early 2022"]
[White "Melikhov, Evgeny V."]
[Black "Vaibhav Jayant Raut"]
[WhiteFideId "4122046"]
[BlackFideId "5089034"]
[WhiteElo "2169"]
[BlackElo "2147"]
[Result "0-1"]
[Round "02"]
[TimeControl "180+1"]
[Date "2022.11.09"]
[WhiteClock "0:00:51"]
[BlackClock "0:00:42"]

1. d4 {[%clk 0:02:59]}  Nf6 {[%clk 0:02:59]} 2. c4 {[%clk 0:02:59]}  e6 {[%clk 0:02:59]} 3. Nc3 {[%clk 0:02:59]}  Bb4 {[%clk 0:02:59]} 4. Qc2 {[%clk 0:03:00]}  O-O {[%clk 0:02:58]} 5. e4 {[%clk 0:02:59]}  d5 {[%clk 0:02:58]} 6. e5 {[%clk 0:02:59]}  Ne4 {[%clk 0:02:58]} 7. Bd3 {[%clk 0:02:59]}  f5 {[%clk 0:02:58]} 8. exf6 {[%clk 0:02:59]}  Qxf6 {[%clk 0:02:46]} 9. Nf3 {[%clk 0:02:58]}  Nc6 {[%clk 0:02:28]} 10. O-O {[%clk 0:02:54]}  Nxd4 {[%clk 0:02:22]} 11. Nxd4 {[%clk 0:02:53]}  Qxd4 {[%clk 0:02:23]} 12. Nxe4 {[%clk 0:02:53]}  dxe4 {[%clk 0:02:18]} 13. Bxe4 {[%clk 0:02:53]}  h6 {[%clk 0:01:55]} 14. Be3 {[%clk 0:02:47]}  Qe5 {[%clk 0:01:49]} 15. c5 {[%clk 0:02:43]}  c6 {[%clk 0:01:47]} 16. Rad1 {[%clk 0:01:54]}  Ba5 {[%clk 0:01:43]} 17. Bd4 {[%clk 0:01:31]}  Qh5 {[%clk 0:01:32]} 18. Bh7+ {[%clk 0:01:22]}  Kh8 {[%clk 0:01:30]} 19. Bg6 {[%clk 0:01:22]}  Qg5 {[%clk 0:01:25]} 20. Rd3 {[%clk 0:01:11]}  Qxg6 {[%clk 0:00:48]} 21. Qd1 {[%clk 0:00:55]}  Bc7 {[%clk 0:00:44]} 22. Rh3 {[%clk 0:00:54]}  e5 {[%clk 0:00:42]} 23. Be3 {[%clk 0:00:51]}  Bxh3 {[%clk 0:00:42]} 0-1


[Site "https://www.chess.com"]

[Event "Titled Tuesday Blitz November 08 Early 2022"]
[White "Mills, Morgen"]
[Black "Korelskiy, Egor"]
[WhiteFideId "2013304"]
[BlackFideId "34329064"]
[WhiteElo "2272"]
[BlackElo "2043"]
[Result "0-1"]
[Round "02"]
[TimeControl "180+1"]
[Date "2022.11.09"]
[WhiteClock "0:01:35"]
[BlackClock "0:01:07"]

1. e4 {[%clk 0:03:00]}  c5 {[%clk 0:02:59]} 2. Nf3 {[%clk 0:03:00]}  e6 {[%clk 0:03:00]} 3. c3 {[%clk 0:02:59]}  d5 {[%clk 0:02:59]} 4. exd5 {[%clk 0:02:58]}  exd5 {[%clk 0:03:00]} 5. d4 {[%clk 0:02:58]}  Nf6 {[%clk 0:03:00]} 6. Be2 {[%clk 0:02:58]}  Nc6 {[%clk 0:03:01]} 7. O-O {[%clk 0:02:58]}  Be7 {[%clk 0:03:01]} 8. dxc5 {[%clk 0:02:58]}  Bxc5 {[%clk 0:03:01]} 9. Re1 {[%clk 0:02:59]}  Be6 {[%clk 0:03:01]} 10. Ng5 {[%clk 0:02:54]}  O-O {[%clk 0:02:57]} 11. b4 {[%clk 0:02:45]}  Bb6 {[%clk 0:02:55]} 12. a4 {[%clk 0:02:42]}  h6 {[%clk 0:02:48]} 13. Nxe6 {[%clk 0:02:41]}  fxe6 {[%clk 0:02:47]} 14. Bf3 {[%clk 0:02:38]}  Ne4 {[%clk 0:02:36]} 15. Be3 {[%clk 0:02:32]}  Bxe3 {[%clk 0:02:33]} 16. Rxe3 {[%clk 0:02:33]}  Ng5 {[%clk 0:02:33]} 17. Nd2 {[%clk 0:02:28]}  Qf6 {[%clk 0:02:27]} 18. Qe2 {[%clk 0:02:25]}  d4 {[%clk 0:02:16]} 19. Ne4 {[%clk 0:02:14]}  Nxe4 {[%clk 0:01:46]} 20. Rxe4 {[%clk 0:02:14]}  dxc3 {[%clk 0:01:34]} 21. Rxe6 {[%clk 0:02:13]}  Nd4 {[%clk 0:01:30]} 22. Rxf6 {[%clk 0:01:51]}  Nxe2+ {[%clk 0:01:29]} 23. Bxe2 {[%clk 0:01:51]}  Rxf6 {[%clk 0:01:28]} 24. Bc4+ {[%clk 0:01:51]}  Kh8 {[%clk 0:01:28]} 25. Rc1 {[%clk 0:01:50]}  Rc8 {[%clk 0:01:28]} 26. Bd5 {[%clk 0:01:36]}  Rd6 {[%clk 0:01:22]} 27. Bxb7 {[%clk 0:01:35]}  c2 {[%clk 0:01:12]} 28. Bf3 {[%clk 0:01:35]}  Rcd8 {[%clk 0:01:07]} 0-1


[Site "https://www.chess.com"]

[Event "Titled Tuesday Blitz November 08 Early 2022"]
[White "Moaataz, Ayah"]
[Black "Nurmanova, Alua"]
[WhiteFideId "10615873"]
[BlackFideId "13729390"]
[WhiteElo "1993"]
[BlackElo "2120"]
[Result "1-0"]
[Round "02"]
[TimeControl "180+1"]
[Date "2022.11.09"]
[WhiteClock "0:00:10"]
[BlackClock "0:00:05"]

1. c4 {[%clk 0:02:59]}  Nf6 {[%clk 0:02:59]} 2. g3 {[%clk 0:03:00]}  g6 {[%clk 0:03:00]} 3. Bg2 {[%clk 0:03:00]}  Bg7 {[%clk 0:03:00]} 4. Nf3 {[%clk 0:03:01]}  O-O {[%clk 0:03:00]} 5. O-O {[%clk 0:03:01]}  d5 {[%clk 0:02:56]} 6. d4 {[%clk 0:02:57]}  Nc6 {[%clk 0:02:56]} 7. c5 {[%clk 0:02:47]}  Ne4 {[%clk 0:02:44]} 8. Nc3 {[%clk 0:02:43]}  Bf5 {[%clk 0:02:33]} 9. Bf4 {[%clk 0:02:28]}  h6 {[%clk 0:02:16]} 10. Nb5 {[%clk 0:02:18]}  Rc8 {[%clk 0:02:13]} 11. h4 {[%clk 0:02:01]}  Re8 {[%clk 0:02:06]} 12. Qc1 {[%clk 0:01:46]}  Kh7 {[%clk 0:02:05]} 13. Rd1 {[%clk 0:01:45]}  b6 {[%clk 0:01:51]} 14. b4 {[%clk 0:01:20]}  Nxb4 {[%clk 0:01:45]} 15. Nxa7 {[%clk 0:01:19]}  Ra8 {[%clk 0:01:43]} 16. Nb5 {[%clk 0:01:19]}  Na6 {[%clk 0:01:19]} 17. cxb6 {[%clk 0:01:17]}  cxb6 {[%clk 0:01:20]} 18. Qc6 {[%clk 0:01:11]}  Rc8 {[%clk 0:00:52]} 19. Qb7 {[%clk 0:01:11]}  Nb4 {[%clk 0:00:49]} 20. Nc7 {[%clk 0:01:07]}  Rf8 {[%clk 0:00:46]} 21. Qxb6 {[%clk 0:01:05]}  Rb8 {[%clk 0:00:40]} 22. Qa7 {[%clk 0:00:56]}  Nc6 {[%clk 0:00:39]} 23. Qa4 {[%clk 0:00:55]}  Bd7 {[%clk 0:00:37]} 24. Rac1 {[%clk 0:00:48]}  Nxd4 {[%clk 0:00:26]} 25. Qxd4 {[%clk 0:00:38]}  Bxd4 {[%clk 0:00:25]} 26. Nxd4 {[%clk 0:00:39]}  Rb6 {[%clk 0:00:20]} 27. Nxd5 {[%clk 0:00:38]}  Nd6 {[%clk 0:00:15]} 28. e4 {[%clk 0:00:31]}  Ra6 {[%clk 0:00:13]} 29. e5 {[%clk 0:00:31]}  Nf5 {[%clk 0:00:13]} 30. Nxf5 {[%clk 0:00:29]}  gxf5 {[%clk 0:00:13]} 31. Nc7 {[%clk 0:00:20]}  Ra7 {[%clk 0:00:12]} 32. e6 {[%clk 0:00:18]}  fxe6 {[%clk 0:00:11]} 33. Nxe6 {[%clk 0:00:17]}  Qe8 {[%clk 0:00:11]} 34. Nc7 {[%clk 0:00:16]}  Qc8 {[%clk 0:00:10]} 35. Nd5 {[%clk 0:00:16]}  Qe8 {[%clk 0:00:09]} 36. Re1 {[%clk 0:00:15]}  Ba4 {[%clk 0:00:07]} 37. Rc7 {[%clk 0:00:13]}  Rf7 {[%clk 0:00:07]} 38. Rxa7 {[%clk 0:00:13]}  Bc6 {[%clk 0:00:05]} 39. Raxe7 {[%clk 0:00:10]} 1-0


[Site "https://www.chess.com"]

[Event "Titled Tuesday Blitz November 08 Early 2022"]
[White "Molina, Roberto Junio Brito"]
[Black "Chernov, Mikhail"]
[WhiteFideId "2109450"]
[BlackFideId "24143170"]
[WhiteElo "2388"]
[BlackElo "2113"]
[Result "1-0"]
[Round "02"]
[TimeControl "180+1"]
[Date "2022.11.09"]
[WhiteClock "0:00:11"]
[BlackClock "0:00:02"]

1. d4 {[%clk 0:03:00]}  d5 {[%clk 0:03:00]} 2. Nf3 {[%clk 0:03:01]}  Nc6 {[%clk 0:03:00]} 3. c4 {[%clk 0:02:58]}  Bg4 {[%clk 0:03:01]} 4. cxd5 {[%clk 0:02:58]}  Bxf3 {[%clk 0:03:01]} 5. gxf3 {[%clk 0:02:58]}  Qxd5 {[%clk 0:03:01]} 6. e3 {[%clk 0:02:58]}  e5 {[%clk 0:03:02]} 7. Nc3 {[%clk 0:02:59]}  Bb4 {[%clk 0:03:03]} 8. Bd2 {[%clk 0:02:57]}  Bxc3 {[%clk 0:03:03]} 9. bxc3 {[%clk 0:02:58]}  Qd6 {[%clk 0:03:04]} 10. Qa4 {[%clk 0:02:49]}  O-O-O {[%clk 0:03:02]} 11. f4 {[%clk 0:02:44]}  exf4 {[%clk 0:02:55]} 12. e4 {[%clk 0:02:44]}  f6 {[%clk 0:02:52]} 13. Rb1 {[%clk 0:02:40]}  Nge7 {[%clk 0:02:51]} 14. Qb5 {[%clk 0:02:20]}  b6 {[%clk 0:02:46]} 15. a4 {[%clk 0:01:58]}  Rhe8 {[%clk 0:02:20]} 16. Bh3+ {[%clk 0:01:55]}  Kb8 {[%clk 0:02:19]} 17. O-O {[%clk 0:01:50]}  g5 {[%clk 0:02:06]} 18. Kh1 {[%clk 0:01:43]}  h5 {[%clk 0:02:01]} 19. f3 {[%clk 0:01:42]}  Ka8 {[%clk 0:01:47]} 20. a5 {[%clk 0:01:37]}  Nxa5 {[%clk 0:01:42]} 21. Ra1 {[%clk 0:01:32]}  Qc6 {[%clk 0:01:35]} 22. Qa6 {[%clk 0:01:19]}  Qb7 {[%clk 0:00:58]} 23. Qd3 {[%clk 0:01:12]}  Nb3 {[%clk 0:00:51]} 24. Ra3 {[%clk 0:01:09]}  Nxd2 {[%clk 0:00:47]} 25. Qxd2 {[%clk 0:01:09]}  a5 {[%clk 0:00:34]} 26. c4 {[%clk 0:01:04]}  Nc6 {[%clk 0:00:33]} 27. d5 {[%clk 0:00:58]}  Qa6 {[%clk 0:00:30]} 28. Rc1 {[%clk 0:00:48]}  Ne5 {[%clk 0:00:29]} 29. Bf1 {[%clk 0:00:49]}  g4 {[%clk 0:00:24]} 30. c5 {[%clk 0:00:43]}  Qb7 {[%clk 0:00:17]} 31. Qxf4 {[%clk 0:00:30]}  gxf3 {[%clk 0:00:13]} 32. Qxf6 {[%clk 0:00:22]}  Ka7 {[%clk 0:00:04]} 33. Rac3 {[%clk 0:00:19]}  b5 {[%clk 0:00:03]} 34. d6 {[%clk 0:00:17]}  c6 {[%clk 0:00:03]} 35. Ra3 {[%clk 0:00:15]}  a4 {[%clk 0:00:03]} 36. Rb1 {[%clk 0:00:15]}  Qd7 {[%clk 0:00:01]} 37. Qh4 {[%clk 0:00:12]}  Ng4 {[%clk 0:00:02]} 38. Bh3 {[%clk 0:00:11]}  Rxe4 {[%clk 0:00:02]} 39. Qg3 {[%clk 0:00:11]}  Qf7 {[%clk 0:00:02]} 40. Rxf3 {[%clk 0:00:11]} 1-0


[Site "https://www.chess.com"]

[Event "Titled Tuesday Blitz November 08 Early 2022"]
[White "Ovchinnikov, Vsevolod"]
[Black "Faizrakhmanov, Ramil"]
[WhiteFideId "24176842"]
[BlackFideId "24103209"]
[WhiteElo "2376"]
[BlackElo "2437"]
[Result "0-1"]
[Round "02"]
[TimeControl "180+1"]
[Date "2022.11.09"]
[WhiteClock "0:00:04"]
[BlackClock "0:00:05"]

1. d4 {[%clk 0:02:59]}  Nf6 {[%clk 0:02:59]} 2. c4 {[%clk 0:03:00]}  e6 {[%clk 0:03:00]} 3. g3 {[%clk 0:03:00]}  d5 {[%clk 0:03:00]} 4. Bg2 {[%clk 0:03:00]}  dxc4 {[%clk 0:03:00]} 5. Nf3 {[%clk 0:03:01]}  Bb4+ {[%clk 0:03:00]} 6. Bd2 {[%clk 0:03:01]}  a5 {[%clk 0:03:01]} 7. Qc2 {[%clk 0:02:59]}  c5 {[%clk 0:03:00]} 8. Qxc4 {[%clk 0:02:55]}  b6 {[%clk 0:02:58]} 9. dxc5 {[%clk 0:02:45]}  Bxc5 {[%clk 0:02:50]} 10. Nc3 {[%clk 0:02:35]}  Bb7 {[%clk 0:02:41]} 11. Rd1 {[%clk 0:02:30]}  Nbd7 {[%clk 0:02:39]} 12. Bg5 {[%clk 0:02:17]}  Qe7 {[%clk 0:02:28]} 13. O-O {[%clk 0:01:45]}  O-O {[%clk 0:02:27]} 14. Nd2 {[%clk 0:01:30]}  Bxg2 {[%clk 0:02:23]} 15. Kxg2 {[%clk 0:01:31]}  Rac8 {[%clk 0:02:16]} 16. Qb5 {[%clk 0:01:23]}  h6 {[%clk 0:02:12]} 17. Bxf6 {[%clk 0:01:23]}  Nxf6 {[%clk 0:02:13]} 18. Nde4 {[%clk 0:01:14]}  Qb7 {[%clk 0:01:45]} 19. f3 {[%clk 0:01:13]}  Nxe4 {[%clk 0:01:34]} 20. Nxe4 {[%clk 0:01:14]}  Be7 {[%clk 0:01:32]} 21. Rd7 {[%clk 0:01:02]}  Rc7 {[%clk 0:01:31]} 22. Rfd1 {[%clk 0:00:52]}  Rfc8 {[%clk 0:01:09]} 23. Rxc7 {[%clk 0:00:30]}  Rxc7 {[%clk 0:01:10]} 24. Rd2 {[%clk 0:00:22]}  Qc6 {[%clk 0:01:08]} 25. Qxc6 {[%clk 0:00:21]}  Rxc6 {[%clk 0:01:09]} 26. Rd7 {[%clk 0:00:20]}  Kf8 {[%clk 0:00:45]} 27. Rb7 {[%clk 0:00:20]}  f5 {[%clk 0:00:46]} 28. Nc3 {[%clk 0:00:19]}  Bf6 {[%clk 0:00:46]} 29. Na4 {[%clk 0:00:19]}  Rc2 {[%clk 0:00:47]} 30. Kf1 {[%clk 0:00:18]}  Bxb2 {[%clk 0:00:42]} 31. Rxb6 {[%clk 0:00:17]}  Bd4 {[%clk 0:00:38]} 32. Rxe6 {[%clk 0:00:13]}  Rxa2 {[%clk 0:00:37]} 33. Nb6 {[%clk 0:00:14]}  a4 {[%clk 0:00:34]} 34. Nd7+ {[%clk 0:00:13]}  Kf7 {[%clk 0:00:33]} 35. Ra6 {[%clk 0:00:13]}  a3 {[%clk 0:00:32]} 36. Nb8 {[%clk 0:00:13]}  Ra1+ {[%clk 0:00:27]} 37. Kg2 {[%clk 0:00:12]}  a2 {[%clk 0:00:28]} 38. Kh3 {[%clk 0:00:12]}  g5 {[%clk 0:00:20]} 39. Nc6 {[%clk 0:00:11]}  Bc3 {[%clk 0:00:20]} 40. Ra3 {[%clk 0:00:07]}  h5 {[%clk 0:00:18]} 41. Ra4 {[%clk 0:00:03]}  g4+ {[%clk 0:00:13]} 42. Kg2 {[%clk 0:00:04]}  Ke6 {[%clk 0:00:09]} 43. Na7 {[%clk 0:00:03]}  Kd5 {[%clk 0:00:07]} 44. Nb5 {[%clk 0:00:04]}  Bb2 {[%clk 0:00:06]} 45. e4+ {[%clk 0:00:04]}  fxe4 {[%clk 0:00:06]} 46. fxe4+ {[%clk 0:00:04]}  Kc5 {[%clk 0:00:06]} 47. Nc7 {[%clk 0:00:05]}  Kb6 {[%clk 0:00:06]} 48. Nd5+ {[%clk 0:00:05]}  Kb5 {[%clk 0:00:07]} 49. Rb4+ {[%clk 0:00:06]}  Kc5 {[%clk 0:00:06]} 50. Ra4 {[%clk 0:00:07]}  Bd4 {[%clk 0:00:04]} 51. h4 {[%clk 0:00:03]}  Rg1+ {[%clk 0:00:04]} 52. Kh2 {[%clk 0:00:04]}  a1=Q {[%clk 0:00:05]} 0-1


[Site "https://www.chess.com"]

[Event "Titled Tuesday Blitz November 08 Early 2022"]
[White "Padmini, Rout"]
[Black "Fawzy, Adham"]
[WhiteFideId "5029295"]
[BlackFideId "10613129"]
[WhiteElo "2296"]
[BlackElo "2541"]
[Result "1/2-1/2"]
[Round "02"]
[TimeControl "180+1"]
[Date "2022.11.09"]
[WhiteClock "0:00:26"]
[BlackClock "0:00:08"]

1. e4 {[%clk 0:03:00]}  c5 {[%clk 0:03:00]} 2. c3 {[%clk 0:02:59]}  Nf6 {[%clk 0:02:59]} 3. e5 {[%clk 0:02:56]}  Nd5 {[%clk 0:03:00]} 4. Nf3 {[%clk 0:02:56]}  d6 {[%clk 0:02:59]} 5. d4 {[%clk 0:02:51]}  cxd4 {[%clk 0:03:00]} 6. cxd4 {[%clk 0:02:51]}  Nc6 {[%clk 0:02:59]} 7. Bc4 {[%clk 0:02:51]}  Nb6 {[%clk 0:02:59]} 8. Bb3 {[%clk 0:02:49]}  dxe5 {[%clk 0:02:47]} 9. Nxe5 {[%clk 0:02:46]}  Nxe5 {[%clk 0:02:27]} 10. dxe5 {[%clk 0:02:47]}  Qxd1+ {[%clk 0:02:27]} 11. Bxd1 {[%clk 0:02:48]}  Bf5 {[%clk 0:02:10]} 12. Nc3 {[%clk 0:02:47]}  e6 {[%clk 0:02:08]} 13. Bf3 {[%clk 0:02:31]}  O-O-O {[%clk 0:02:06]} 14. Bg5 {[%clk 0:02:28]}  Rd7 {[%clk 0:01:53]} 15. Nb5 {[%clk 0:02:25]}  Bb4+ {[%clk 0:01:42]} 16. Kf1 {[%clk 0:02:20]}  Kb8 {[%clk 0:01:11]} 17. Be3 {[%clk 0:02:11]}  Rc8 {[%clk 0:00:59]} 18. g4 {[%clk 0:02:01]}  Bd3+ {[%clk 0:00:56]} 19. Be2 {[%clk 0:02:00]}  Bxe2+ {[%clk 0:00:55]} 20. Kxe2 {[%clk 0:02:00]}  Rc2+ {[%clk 0:00:53]} 21. Kf3 {[%clk 0:02:00]}  Rxb2 {[%clk 0:00:51]} 22. Rhd1 {[%clk 0:01:40]}  Rxd1 {[%clk 0:00:24]} 23. Rxd1 {[%clk 0:01:41]}  Be7 {[%clk 0:00:22]} 24. a4 {[%clk 0:01:35]}  Nxa4 {[%clk 0:00:15]} 25. Nxa7 {[%clk 0:01:22]}  Bc5 {[%clk 0:00:14]} 26. Rd7 {[%clk 0:01:02]}  Bxe3 {[%clk 0:00:12]} 27. Kxe3 {[%clk 0:01:03]}  Kxa7 {[%clk 0:00:12]} 28. Rxf7 {[%clk 0:01:03]}  Rb3+ {[%clk 0:00:12]} 29. Kf4 {[%clk 0:00:57]}  Nc5 {[%clk 0:00:12]} 30. Rxg7 {[%clk 0:00:55]}  Nd3+ {[%clk 0:00:12]} 31. Kg5 {[%clk 0:00:46]}  Nxe5 {[%clk 0:00:12]} 32. f4 {[%clk 0:00:46]}  Nd3 {[%clk 0:00:12]} 33. Rxh7 {[%clk 0:00:45]}  Ka6 {[%clk 0:00:09]} 34. f5 {[%clk 0:00:44]}  exf5 {[%clk 0:00:09]} 35. gxf5 {[%clk 0:00:44]}  Nf2 {[%clk 0:00:07]} 36. f6 {[%clk 0:00:40]}  Ne4+ {[%clk 0:00:07]} 37. Kf5 {[%clk 0:00:38]}  Nxf6 {[%clk 0:00:07]} 38. Kxf6 {[%clk 0:00:38]}  b5 {[%clk 0:00:07]} 39. h4 {[%clk 0:00:36]}  Ka5 {[%clk 0:00:08]} 40. h5 {[%clk 0:00:35]}  Rh3 {[%clk 0:00:08]} 41. h6 {[%clk 0:00:34]}  Kb4 {[%clk 0:00:07]} 42. Kg5 {[%clk 0:00:34]}  Kc3 {[%clk 0:00:06]} 43. Rc7+ {[%clk 0:00:33]}  Kb3 {[%clk 0:00:06]} 44. Kg6 {[%clk 0:00:32]}  b4 {[%clk 0:00:06]} 45. h7 {[%clk 0:00:32]}  Kb2 {[%clk 0:00:06]} 46. Rc5 {[%clk 0:00:27]}  Rxh7 {[%clk 0:00:05]} 47. Kxh7 {[%clk 0:00:27]}  b3 {[%clk 0:00:06]} 48. Rb5 {[%clk 0:00:27]}  Ka2 {[%clk 0:00:07]} 49. Rxb3 {[%clk 0:00:26]}  Kxb3 {[%clk 0:00:08]} 1/2-1/2


[Site "https://www.chess.com"]

[Event "Titled Tuesday Blitz November 08 Early 2022"]
[White "Perez Ponsa, Federico"]
[Black "Parpiev, Isaak"]
[WhiteFideId "117927"]
[BlackFideId "34281576"]
[WhiteElo "2606"]
[BlackElo "2094"]
[Result "1-0"]
[Round "02"]
[TimeControl "180+1"]
[Date "2022.11.09"]
[WhiteClock "0:00:34"]
[BlackClock "0:00:01"]

1. e4 {[%clk 0:02:45]}  e5 {[%clk 0:02:56]} 2. Nf3 {[%clk 0:02:44]}  Nc6 {[%clk 0:02:56]} 3. d4 {[%clk 0:02:45]}  exd4 {[%clk 0:02:54]} 4. Nxd4 {[%clk 0:02:46]}  Nf6 {[%clk 0:02:53]} 5. Nxc6 {[%clk 0:02:46]}  bxc6 {[%clk 0:02:53]} 6. Bd3 {[%clk 0:02:46]}  d5 {[%clk 0:02:52]} 7. exd5 {[%clk 0:02:46]}  cxd5 {[%clk 0:02:52]} 8. O-O {[%clk 0:02:46]}  Be7 {[%clk 0:02:52]} 9. c4 {[%clk 0:02:47]}  d4 {[%clk 0:02:48]} 10. Bg5 {[%clk 0:02:46]}  O-O {[%clk 0:02:48]} 11. Nd2 {[%clk 0:02:47]}  Rb8 {[%clk 0:02:47]} 12. Rb1 {[%clk 0:02:47]}  c5 {[%clk 0:02:40]} 13. Re1 {[%clk 0:02:42]}  Bb7 {[%clk 0:02:32]} 14. Bxf6 {[%clk 0:02:33]}  Bxf6 {[%clk 0:02:32]} 15. Qh5 {[%clk 0:02:33]}  g6 {[%clk 0:02:30]} 16. Qxc5 {[%clk 0:02:33]}  Qd7 {[%clk 0:02:22]} 17. Ne4 {[%clk 0:02:23]}  Bxe4 {[%clk 0:02:07]} 18. Bxe4 {[%clk 0:02:24]}  d3 {[%clk 0:02:00]} 19. b3 {[%clk 0:02:19]}  Rbd8 {[%clk 0:01:49]} 20. Bd5 {[%clk 0:02:17]}  Qg4 {[%clk 0:01:34]} 21. Qe3 {[%clk 0:02:07]}  Qf5 {[%clk 0:00:48]} 22. Rbd1 {[%clk 0:02:03]}  Rfe8 {[%clk 0:00:42]} 23. Qxe8+ {[%clk 0:01:39]}  Rxe8 {[%clk 0:00:43]} 24. Rxe8+ {[%clk 0:01:39]}  Kg7 {[%clk 0:00:43]} 25. Re4 {[%clk 0:01:09]}  Qg5 {[%clk 0:00:24]} 26. h4 {[%clk 0:01:01]}  Qh5 {[%clk 0:00:17]} 27. Rxd3 {[%clk 0:01:00]}  Bxh4 {[%clk 0:00:16]} 28. g3 {[%clk 0:00:43]}  Bf6 {[%clk 0:00:13]} 29. Kg2 {[%clk 0:00:41]}  Qg5 {[%clk 0:00:13]} 30. Rf3 {[%clk 0:00:40]}  Be5 {[%clk 0:00:07]} 31. Rxf7+ {[%clk 0:00:39]}  Kh8 {[%clk 0:00:03]} 32. f4 {[%clk 0:00:36]}  Qg4 {[%clk 0:00:01]} 33. Rxe5 {[%clk 0:00:34]} 1-0


[Site "https://www.chess.com"]

[Event "Titled Tuesday Blitz November 08 Early 2022"]
[White "Postnikov, Daniil"]
[Black "Seletsky, Grigory"]
[WhiteFideId "4166329"]
[BlackFideId "14112191"]
[WhiteElo "2261"]
[BlackElo "2492"]
[Result "1-0"]
[Round "02"]
[TimeControl "180+1"]
[Date "2022.11.09"]
[WhiteClock "0:00:38"]
[BlackClock "0:00:57"]

1. e4 {[%clk 0:02:58]}  e6 {[%clk 0:02:58]} 2. d4 {[%clk 0:02:52]}  d5 {[%clk 0:02:59]} 3. e5 {[%clk 0:02:53]}  c5 {[%clk 0:02:58]} 4. c3 {[%clk 0:02:54]}  Nc6 {[%clk 0:02:58]} 5. Nf3 {[%clk 0:02:54]}  Bd7 {[%clk 0:02:59]} 6. Bd3 {[%clk 0:02:51]}  cxd4 {[%clk 0:02:58]} 7. cxd4 {[%clk 0:02:47]}  Qb6 {[%clk 0:02:47]} 8. O-O {[%clk 0:02:46]}  Nxd4 {[%clk 0:02:47]} 9. Nxd4 {[%clk 0:02:47]}  Qxd4 {[%clk 0:02:46]} 10. Nc3 {[%clk 0:02:48]}  Qxe5 {[%clk 0:02:45]} 11. Re1 {[%clk 0:02:44]}  Qb8 {[%clk 0:02:45]} 12. Nxd5 {[%clk 0:02:42]}  Bd6 {[%clk 0:02:45]} 13. Qg4 {[%clk 0:02:36]}  Kf8 {[%clk 0:02:45]} 14. Bg5 {[%clk 0:02:05]}  Bxh2+ {[%clk 0:02:33]} 15. Kh1 {[%clk 0:02:04]}  Bd6 {[%clk 0:02:33]} 16. Rad1 {[%clk 0:01:58]}  f5 {[%clk 0:02:19]} 17. Qd4 {[%clk 0:01:39]}  e5 {[%clk 0:01:52]} 18. Qh4 {[%clk 0:01:33]}  e4 {[%clk 0:01:45]} 19. Bc4 {[%clk 0:01:17]}  Bc6 {[%clk 0:01:31]} 20. Nf4 {[%clk 0:01:15]}  Bxf4 {[%clk 0:01:24]} 21. Bxf4 {[%clk 0:01:14]}  Qe8 {[%clk 0:01:24]} 22. Bd6+ {[%clk 0:00:46]}  Ne7 {[%clk 0:01:24]} 23. f3 {[%clk 0:00:41]}  Rd8 {[%clk 0:00:57]} 24. Bxe7+ {[%clk 0:00:38]} 1-0


[Site "https://www.chess.com"]